[Event "Titled Tuesday Blitz May 24 Early 2022"]
[White "Dushyant Sharma"]
[Black "Valle Maytin, Luis Enrique"]
[WhiteFideId "25065130"]
[BlackFideId "3503666"]
[WhiteElo "2105"]
[BlackElo "2248"]
[Result "1-0"]
[Round "04"]
[TimeControl "180+1"]
[Date "2022.05.25"]
[WhiteClock "0:01:52"]
[BlackClock "0:01:00"]

1. e4 {[%clk 0:03:00]}  c6 {[%clk 0:02:58]} 2. Nf3 {[%clk 0:03:00]}  d5 {[%clk 0:02:57]} 3. exd5 {[%clk 0:03:01]}  cxd5 {[%clk 0:02:57]} 4. d4 {[%clk 0:03:02]}  Nc6 {[%clk 0:02:55]} 5. Bd3 {[%clk 0:03:02]}  Qc7 {[%clk 0:02:53]} 6. c3 {[%clk 0:03:02]}  Nf6 {[%clk 0:02:52]} 7. O-O {[%clk 0:03:02]}  Bg4 {[%clk 0:02:52]} 8. Be3 {[%clk 0:03:01]}  e6 {[%clk 0:02:52]} 9. Nbd2 {[%clk 0:03:01]}  Bd6 {[%clk 0:02:52]} 10. Qc2 {[%clk 0:03:00]}  h6 {[%clk 0:02:50]} 11. Rae1 {[%clk 0:03:00]}  O-O {[%clk 0:02:49]} 12. h3 {[%clk 0:03:00]}  Bxf3 {[%clk 0:02:45]} 13. Nxf3 {[%clk 0:03:00]}  a6 {[%clk 0:02:45]} 14. Qd2 {[%clk 0:02:58]}  b5 {[%clk 0:02:44]} 15. Bxh6 {[%clk 0:02:49]}  gxh6 {[%clk 0:02:31]} 16. Qxh6 {[%clk 0:02:50]}  Ne4 {[%clk 0:02:32]} 17. Bxe4 {[%clk 0:02:44]}  dxe4 {[%clk 0:02:32]} 18. Rxe4 {[%clk 0:02:45]}  f5 {[%clk 0:01:47]} 19. Rxe6 {[%clk 0:02:42]}  Rf7 {[%clk 0:01:20]} 20. Rxd6 {[%clk 0:01:59]}  Ne7 {[%clk 0:01:19]} 21. Ne5 {[%clk 0:01:55]}  Rg7 {[%clk 0:01:00]} 22. Qe6+ {[%clk 0:01:55]}  Kh8 {[%clk 0:01:00]} 23. Rd7 {[%clk 0:01:52]} 1-0


[Site "https://www.chess.com"]

[Event "Titled Tuesday Blitz May 24 Early 2022"]
[White "Fernandez Barrera, Victor"]
[Black "Ivanisevic, Ivan"]
[WhiteFideId "2261529"]
[BlackFideId "912417"]
[WhiteElo "2189"]
[BlackElo "2495"]
[Result "1-0"]
[Round "04"]
[TimeControl "180+1"]
[Date "2022.05.25"]
[WhiteClock "0:01:09"]
[BlackClock "0:00:37"]

1. Nf3 {[%clk 0:03:00]}  c5 {[%clk 0:02:55]} 2. c4 {[%clk 0:03:00]}  Nc6 {[%clk 0:02:54]} 3. d4 {[%clk 0:03:01]}  cxd4 {[%clk 0:02:53]} 4. Nxd4 {[%clk 0:03:02]}  Nf6 {[%clk 0:02:50]} 5. Nc3 {[%clk 0:03:02]}  e6 {[%clk 0:02:50]} 6. Ndb5 {[%clk 0:02:58]}  d6 {[%clk 0:02:48]} 7. Bf4 {[%clk 0:02:56]}  e5 {[%clk 0:02:47]} 8. Bg5 {[%clk 0:02:57]}  a6 {[%clk 0:02:48]} 9. Bxf6 {[%clk 0:02:52]}  gxf6 {[%clk 0:02:49]} 10. Na3 {[%clk 0:02:52]}  f5 {[%clk 0:02:49]} 11. e3 {[%clk 0:02:48]}  Be6 {[%clk 0:02:49]} 12. Nd5 {[%clk 0:02:48]}  Bg7 {[%clk 0:02:48]} 13. Nc2 {[%clk 0:02:48]}  e4 {[%clk 0:02:46]} 14. b3 {[%clk 0:02:44]}  O-O {[%clk 0:02:45]} 15. Be2 {[%clk 0:02:40]}  Bxd5 {[%clk 0:02:44]} 16. Qxd5 {[%clk 0:02:36]}  Bc3+ {[%clk 0:02:43]} 17. Kf1 {[%clk 0:02:35]}  Bxa1 {[%clk 0:02:40]} 18. Nxa1 {[%clk 0:02:35]}  Qf6 {[%clk 0:02:39]} 19. Nc2 {[%clk 0:02:34]}  Kh8 {[%clk 0:02:07]} 20. h4 {[%clk 0:02:31]}  Rac8 {[%clk 0:02:05]} 21. h5 {[%clk 0:02:26]}  h6 {[%clk 0:02:04]} 22. g3 {[%clk 0:02:23]}  b5 {[%clk 0:02:03]} 23. Rh4 {[%clk 0:02:17]}  bxc4 {[%clk 0:02:01]} 24. Bxc4 {[%clk 0:02:14]}  Ne5 {[%clk 0:02:00]} 25. Nd4 {[%clk 0:02:14]}  Rc5 {[%clk 0:01:58]} 26. Qb7 {[%clk 0:02:07]}  d5 {[%clk 0:01:55]} 27. Bxd5 {[%clk 0:01:48]}  Rd8 {[%clk 0:01:20]} 28. Bc4 {[%clk 0:01:46]}  Nxc4 {[%clk 0:00:52]} 29. bxc4 {[%clk 0:01:45]}  Rxc4 {[%clk 0:00:53]} 30. Rf4 {[%clk 0:01:36]}  Rc5 {[%clk 0:00:46]} 31. Kg2 {[%clk 0:01:27]}  Kg7 {[%clk 0:00:44]} 32. Qb2 {[%clk 0:01:15]}  Rcd5 {[%clk 0:00:37]} 33. Rxf5 {[%clk 0:01:09]} 1-0


[Site "https://www.chess.com"]

[Event "Titled Tuesday Blitz May 24 Early 2022"]
[White "Fernandez Hernandez, Gerardo"]
[Black "Rahman, Adel"]
[WhiteFideId "2207400"]
[BlackFideId "14204177"]
[WhiteElo "2224"]
[BlackElo "2175"]
[Result "0-1"]
[Round "04"]
[TimeControl "180+1"]
[Date "2022.05.25"]
[WhiteClock "0:00:01"]
[BlackClock "0:00:27"]

1. e4 {[%clk 0:03:00]}  c5 {[%clk 0:02:58]} 2. d3 {[%clk 0:03:00]}  Nc6 {[%clk 0:02:58]} 3. g3 {[%clk 0:03:00]}  g6 {[%clk 0:02:58]} 4. Bg2 {[%clk 0:03:01]}  Bg7 {[%clk 0:02:58]} 5. f4 {[%clk 0:03:01]}  d6 {[%clk 0:02:57]} 6. Nf3 {[%clk 0:03:02]}  e6 {[%clk 0:02:57]} 7. O-O {[%clk 0:03:02]}  Nge7 {[%clk 0:02:58]} 8. c3 {[%clk 0:03:02]}  O-O {[%clk 0:02:57]} 9. Be3 {[%clk 0:03:03]}  b6 {[%clk 0:02:56]} 10. d4 {[%clk 0:03:03]}  cxd4 {[%clk 0:02:55]} 11. cxd4 {[%clk 0:03:03]}  d5 {[%clk 0:02:53]} 12. e5 {[%clk 0:03:03]}  Ba6 {[%clk 0:02:50]} 13. Re1 {[%clk 0:03:03]}  Nf5 {[%clk 0:02:48]} 14. Bf2 {[%clk 0:02:55]}  h5 {[%clk 0:02:48]} 15. Nc3 {[%clk 0:02:53]}  Qd7 {[%clk 0:02:41]} 16. h3 {[%clk 0:02:49]}  Rfc8 {[%clk 0:02:41]} 17. g4 {[%clk 0:02:47]}  hxg4 {[%clk 0:02:41]} 18. hxg4 {[%clk 0:02:47]}  Nh6 {[%clk 0:02:35]} 19. Ng5 {[%clk 0:02:18]}  Nb4 {[%clk 0:02:33]} 20. Bf1 {[%clk 0:02:10]}  Bxf1 {[%clk 0:02:31]} 21. Rxf1 {[%clk 0:02:10]}  b5 {[%clk 0:02:10]} 22. Rc1 {[%clk 0:01:50]}  a5 {[%clk 0:02:05]} 23. Qe2 {[%clk 0:01:44]}  Rab8 {[%clk 0:02:01]} 24. Be3 {[%clk 0:01:30]}  Bf8 {[%clk 0:01:43]} 25. Kg2 {[%clk 0:01:23]}  Nc6 {[%clk 0:01:34]} 26. Rh1 {[%clk 0:00:53]}  b4 {[%clk 0:01:30]} 27. Na4 {[%clk 0:00:52]}  Nxd4 {[%clk 0:01:26]} 28. Bxd4 {[%clk 0:00:49]}  Qxa4 {[%clk 0:01:27]} 29. b3 {[%clk 0:00:27]}  Qd7 {[%clk 0:01:25]} 30. Kg3 {[%clk 0:00:20]}  Rxc1 {[%clk 0:01:23]} 31. Rxc1 {[%clk 0:00:20]}  Rc8 {[%clk 0:01:23]} 32. Rh1 {[%clk 0:00:16]}  Qc6 {[%clk 0:01:18]} 33. Rh2 {[%clk 0:00:16]}  Qc1 {[%clk 0:01:14]} 34. Nf3 {[%clk 0:00:11]}  Qb1 {[%clk 0:00:57]} 35. Rh4 {[%clk 0:00:05]}  Rc2 {[%clk 0:00:52]} 36. Qb5 {[%clk 0:00:04]}  Qxa2 {[%clk 0:00:38]} 37. Qe8 {[%clk 0:00:01]}  Rg2+ {[%clk 0:00:34]} 38. Kh3 {[%clk 0:00:01]}  Qe2 {[%clk 0:00:27]} 0-1


[Site "https://www.chess.com"]

[Event "Titled Tuesday Blitz May 24 Early 2022"]
[White "Gabrielian, Artur"]
[Black "Suleymanli, Suleyman"]
[WhiteFideId "4131002"]
[BlackFideId "13416375"]
[WhiteElo "2440"]
[BlackElo "1598"]
[Result "1-0"]
[Round "04"]
[TimeControl "180+1"]
[Date "2022.05.25"]
[WhiteClock "0:00:08"]
[BlackClock "0:00:03"]

1. e4 {[%clk 0:03:00]}  e6 {[%clk 0:02:59]} 2. d3 {[%clk 0:02:59]}  d5 {[%clk 0:03:00]} 3. Qe2 {[%clk 0:02:59]}  Ne7 {[%clk 0:02:56]} 4. Nf3 {[%clk 0:02:58]}  c5 {[%clk 0:02:56]} 5. g3 {[%clk 0:02:58]}  Nbc6 {[%clk 0:02:57]} 6. Bg2 {[%clk 0:02:59]}  g6 {[%clk 0:02:57]} 7. h4 {[%clk 0:02:55]}  h5 {[%clk 0:02:56]} 8. O-O {[%clk 0:02:54]}  Bg7 {[%clk 0:02:56]} 9. Re1 {[%clk 0:02:54]}  O-O {[%clk 0:02:55]} 10. e5 {[%clk 0:02:52]}  Nf5 {[%clk 0:02:53]} 11. c3 {[%clk 0:02:52]}  b5 {[%clk 0:02:52]} 12. Bg5 {[%clk 0:02:49]}  Qc7 {[%clk 0:02:52]} 13. d4 {[%clk 0:02:47]}  cxd4 {[%clk 0:02:51]} 14. Nbd2 {[%clk 0:02:41]}  dxc3 {[%clk 0:02:50]} 15. bxc3 {[%clk 0:02:41]}  a6 {[%clk 0:02:43]} 16. Nb3 {[%clk 0:02:41]}  Bb7 {[%clk 0:02:43]} 17. Nbd4 {[%clk 0:02:41]}  Ncxd4 {[%clk 0:02:43]} 18. cxd4 {[%clk 0:02:40]}  Qc4 {[%clk 0:02:43]} 19. Qd2 {[%clk 0:02:40]}  Rac8 {[%clk 0:02:42]} 20. Bf6 {[%clk 0:02:40]}  Qc3 {[%clk 0:02:40]} 21. Qf4 {[%clk 0:02:40]}  Bh6 {[%clk 0:02:28]} 22. Bg5 {[%clk 0:02:37]}  Bxg5 {[%clk 0:02:19]} 23. hxg5 {[%clk 0:02:33]}  Rc4 {[%clk 0:02:17]} 24. Rad1 {[%clk 0:02:30]}  a5 {[%clk 0:02:03]} 25. Bh3 {[%clk 0:02:30]}  Bc8 {[%clk 0:02:00]} 26. Bxf5 {[%clk 0:02:30]}  exf5 {[%clk 0:01:58]} 27. Rc1 {[%clk 0:01:55]}  Qa3 {[%clk 0:01:44]} 28. Rxc4 {[%clk 0:01:52]}  bxc4 {[%clk 0:01:44]} 29. Re2 {[%clk 0:01:40]}  Be6 {[%clk 0:01:41]} 30. Kg2 {[%clk 0:01:26]}  Rb8 {[%clk 0:01:39]} 31. Rc2 {[%clk 0:01:19]}  Rb2 {[%clk 0:01:36]} 32. Qd2 {[%clk 0:01:17]}  Rxc2 {[%clk 0:01:28]} 33. Qxc2 {[%clk 0:01:17]}  f4 {[%clk 0:01:25]} 34. Nh4 {[%clk 0:01:09]}  f3+ {[%clk 0:00:43]} 35. Kh2 {[%clk 0:01:04]}  Kg7 {[%clk 0:00:41]} 36. Qb1 {[%clk 0:00:54]}  Qb4 {[%clk 0:00:35]} 37. Qc1 {[%clk 0:00:53]}  c3 {[%clk 0:00:35]} 38. Nxf3 {[%clk 0:00:53]}  Bg4 {[%clk 0:00:32]} 39. Qf4 {[%clk 0:00:45]}  Bxf3 {[%clk 0:00:29]} 40. Qf6+ {[%clk 0:00:44]}  Kg8 {[%clk 0:00:29]} 41. e6 {[%clk 0:00:44]}  Qf8 {[%clk 0:00:21]} 42. e7 {[%clk 0:00:36]}  Qe8 {[%clk 0:00:21]} 43. Qxf3 {[%clk 0:00:33]}  Qxe7 {[%clk 0:00:21]} 44. Qxc3 {[%clk 0:00:33]}  Qxg5 {[%clk 0:00:20]} 45. Qxa5 {[%clk 0:00:32]}  Qf5 {[%clk 0:00:21]} 46. Qd8+ {[%clk 0:00:29]}  Kh7 {[%clk 0:00:20]} 47. Kg1 {[%clk 0:00:28]}  Qb1+ {[%clk 0:00:20]} 48. Kh2 {[%clk 0:00:28]}  Qxa2 {[%clk 0:00:20]} 49. Qf6 {[%clk 0:00:27]}  Qa7 {[%clk 0:00:20]} 50. f3 {[%clk 0:00:17]}  Qd7 {[%clk 0:00:20]} 51. Kg2 {[%clk 0:00:14]}  Qe6 {[%clk 0:00:20]} 52. Qf4 {[%clk 0:00:15]}  Qe2+ {[%clk 0:00:20]} 53. Kg1 {[%clk 0:00:14]}  Qe6 {[%clk 0:00:19]} 54. Kf2 {[%clk 0:00:14]}  Kg7 {[%clk 0:00:18]} 55. Qc7 {[%clk 0:00:13]}  Qf6 {[%clk 0:00:18]} 56. Ke3 {[%clk 0:00:12]}  Qe6+ {[%clk 0:00:17]} 57. Kf2 {[%clk 0:00:13]}  g5 {[%clk 0:00:18]} 58. Qc1 {[%clk 0:00:12]}  Qf5 {[%clk 0:00:17]} 59. Qc5 {[%clk 0:00:11]}  g4 {[%clk 0:00:17]} 60. f4 {[%clk 0:00:11]}  Qe4 {[%clk 0:00:18]} 61. Qc3 {[%clk 0:00:11]}  Qh1 {[%clk 0:00:15]} 62. Qe3 {[%clk 0:00:10]}  Qe4 {[%clk 0:00:13]} 63. Qc3 {[%clk 0:00:09]}  Kh7 {[%clk 0:00:13]} 64. Kg1 {[%clk 0:00:07]}  Qe2 {[%clk 0:00:11]} 65. Qc5 {[%clk 0:00:05]}  Qe3+ {[%clk 0:00:11]} 66. Kh1 {[%clk 0:00:05]}  Qf3+ {[%clk 0:00:11]} 67. Kh2 {[%clk 0:00:04]}  Qf2+ {[%clk 0:00:12]} 68. Kh1 {[%clk 0:00:05]}  Qxg3 {[%clk 0:00:12]} 69. Qxd5 {[%clk 0:00:05]}  Qf3+ {[%clk 0:00:12]} 70. Qxf3 {[%clk 0:00:04]}  gxf3 {[%clk 0:00:13]} 71. Kg1 {[%clk 0:00:05]}  Kg6 {[%clk 0:00:14]} 72. d5 {[%clk 0:00:05]}  Kf5 {[%clk 0:00:13]} 73. Kf2 {[%clk 0:00:05]}  Kf6 {[%clk 0:00:09]} 74. Kxf3 {[%clk 0:00:06]}  Ke7 {[%clk 0:00:10]} 75. Kg3 {[%clk 0:00:05]}  Kd6 {[%clk 0:00:10]} 76. Kh4 {[%clk 0:00:05]}  Kxd5 {[%clk 0:00:11]} 77. Kxh5 {[%clk 0:00:06]}  Ke4 {[%clk 0:00:11]} 78. Kg4 {[%clk 0:00:05]}  f6 {[%clk 0:00:11]} 79. f5 {[%clk 0:00:05]}  Ke5 {[%clk 0:00:10]} 80. Kg3 {[%clk 0:00:06]}  Ke4 {[%clk 0:00:10]} 81. Kg4 {[%clk 0:00:06]}  Ke3 {[%clk 0:00:09]} 82. Kg3 {[%clk 0:00:05]}  Ke2 {[%clk 0:00:07]} 83. Kf4 {[%clk 0:00:04]}  Kf2 {[%clk 0:00:07]} 84. Kg4 {[%clk 0:00:04]}  Kg2 {[%clk 0:00:06]} 85. Kh5 {[%clk 0:00:03]}  Kf3 {[%clk 0:00:07]} 86. Kg6 {[%clk 0:00:04]}  Ke4 {[%clk 0:00:08]} 87. Kxf6 {[%clk 0:00:04]}  Kd4 {[%clk 0:00:09]} 88. Kg6 {[%clk 0:00:05]}  Kd5 {[%clk 0:00:10]} 89. f6 {[%clk 0:00:06]}  Kd6 {[%clk 0:00:11]} 90. f7 {[%clk 0:00:07]}  Ke7 {[%clk 0:00:11]} 91. Kg7 {[%clk 0:00:07]}  Ke6 {[%clk 0:00:02]} 92. f8=Q {[%clk 0:00:08]}  Ke5 {[%clk 0:00:03]} 93. Qf7 {[%clk 0:00:08]} 1-0


[Site "https://www.chess.com"]

[Event "Titled Tuesday Blitz May 24 Early 2022"]
[White "Gaehwiler, Gabriel"]
[Black "Ezat, Mohamed"]
[WhiteFideId "1314530"]
[BlackFideId "10600906"]
[WhiteElo "2383"]
[BlackElo "2386"]
[Result "1-0"]
[Round "04"]
[TimeControl "180+1"]
[Date "2022.05.25"]
[WhiteClock "0:00:12"]
[BlackClock "0:00:09"]

1. d4 {[%clk 0:03:00]}  Nf6 {[%clk 0:02:56]} 2. c4 {[%clk 0:03:01]}  g6 {[%clk 0:02:54]} 3. Nf3 {[%clk 0:03:01]}  Bg7 {[%clk 0:02:38]} 4. g3 {[%clk 0:03:01]}  O-O {[%clk 0:02:38]} 5. Bg2 {[%clk 0:03:02]}  d6 {[%clk 0:02:39]} 6. O-O {[%clk 0:03:03]}  Nc6 {[%clk 0:02:39]} 7. b3 {[%clk 0:03:03]}  Bg4 {[%clk 0:02:39]} 8. Bb2 {[%clk 0:03:03]}  Nd7 {[%clk 0:02:37]} 9. Nbd2 {[%clk 0:03:02]}  e5 {[%clk 0:02:35]} 10. d5 {[%clk 0:03:00]}  Bxf3 {[%clk 0:02:24]} 11. Bxf3 {[%clk 0:02:46]}  Ne7 {[%clk 0:02:22]} 12. Bg2 {[%clk 0:02:45]}  f5 {[%clk 0:02:23]} 13. e3 {[%clk 0:02:40]}  a5 {[%clk 0:02:17]} 14. e4 {[%clk 0:02:40]}  f4 {[%clk 0:02:16]} 15. Bh3 {[%clk 0:02:41]}  Nc5 {[%clk 0:02:15]} 16. Qe2 {[%clk 0:02:40]}  Kh8 {[%clk 0:02:11]} 17. Kh1 {[%clk 0:02:39]}  Ng8 {[%clk 0:02:11]} 18. f3 {[%clk 0:02:39]}  fxg3 {[%clk 0:02:08]} 19. hxg3 {[%clk 0:02:39]}  Nf6 {[%clk 0:02:09]} 20. Rg1 {[%clk 0:02:35]}  Nh5 {[%clk 0:02:08]} 21. Raf1 {[%clk 0:02:31]}  Qg5 {[%clk 0:02:06]} 22. Kh2 {[%clk 0:02:17]}  Bh6 {[%clk 0:01:53]} 23. f4 {[%clk 0:02:08]}  Qe7 {[%clk 0:01:48]} 24. Nf3 {[%clk 0:02:07]}  Bxf4 {[%clk 0:01:39]} 25. gxf4 {[%clk 0:02:04]}  Nxf4 {[%clk 0:01:39]} 26. Qd2 {[%clk 0:01:57]}  Nxe4 {[%clk 0:01:36]} 27. Qe3 {[%clk 0:01:38]}  Nxh3 {[%clk 0:01:35]} 28. Kxh3 {[%clk 0:01:01]}  Nf6 {[%clk 0:01:13]} 29. Ng5 {[%clk 0:00:57]}  Kg8 {[%clk 0:01:07]} 30. Ne6 {[%clk 0:00:55]}  Rf7 {[%clk 0:00:58]} 31. Rf3 {[%clk 0:00:43]}  Nh5 {[%clk 0:00:56]} 32. Rgf1 {[%clk 0:00:39]}  Rxf3+ {[%clk 0:00:50]} 33. Qxf3 {[%clk 0:00:39]}  c6 {[%clk 0:00:49]} 34. Bc1 {[%clk 0:00:39]}  cxd5 {[%clk 0:00:47]} 35. Qxd5 {[%clk 0:00:39]}  Kh8 {[%clk 0:00:45]} 36. c5 {[%clk 0:00:34]}  Re8 {[%clk 0:00:40]} 37. cxd6 {[%clk 0:00:29]}  Qd7 {[%clk 0:00:39]} 38. Qxe5+ {[%clk 0:00:27]}  Kg8 {[%clk 0:00:39]} 39. Bb2 {[%clk 0:00:26]}  Qxe6+ {[%clk 0:00:38]} 40. Qxe6+ {[%clk 0:00:25]}  Rxe6 {[%clk 0:00:39]} 41. Rd1 {[%clk 0:00:18]}  Re8 {[%clk 0:00:37]} 42. d7 {[%clk 0:00:16]}  Rd8 {[%clk 0:00:37]} 43. Be5 {[%clk 0:00:16]}  Kf7 {[%clk 0:00:34]} 44. Bc7 {[%clk 0:00:16]}  Ke7 {[%clk 0:00:33]} 45. Bxd8+ {[%clk 0:00:15]}  Kxd8 {[%clk 0:00:34]} 46. Kg4 {[%clk 0:00:13]}  Nf6+ {[%clk 0:00:34]} 47. Kg5 {[%clk 0:00:14]}  Nxd7 {[%clk 0:00:34]} 48. Kh6 {[%clk 0:00:14]}  Kc7 {[%clk 0:00:33]} 49. Kxh7 {[%clk 0:00:15]}  Nc5 {[%clk 0:00:33]} 50. Kxg6 {[%clk 0:00:15]}  Na6 {[%clk 0:00:33]} 51. Kf5 {[%clk 0:00:15]}  Nb4 {[%clk 0:00:33]} 52. Rd2 {[%clk 0:00:15]}  Kc6 {[%clk 0:00:32]} 53. Ke4 {[%clk 0:00:16]}  Kc5 {[%clk 0:00:32]} 54. a3 {[%clk 0:00:14]}  Nc6 {[%clk 0:00:32]} 55. Kd3 {[%clk 0:00:14]}  a4 {[%clk 0:00:30]} 56. b4+ {[%clk 0:00:14]}  Kb5 {[%clk 0:00:30]} 57. Kc3 {[%clk 0:00:15]}  Kb6 {[%clk 0:00:28]} 58. Rd5 {[%clk 0:00:15]}  Na7 {[%clk 0:00:27]} 59. Ra5 {[%clk 0:00:15]}  Nb5+ {[%clk 0:00:18]} 60. Kb2 {[%clk 0:00:15]}  Nd6 {[%clk 0:00:18]} 61. Rxa4 {[%clk 0:00:15]}  Kb5 {[%clk 0:00:15]} 62. Ra5+ {[%clk 0:00:14]}  Kb6 {[%clk 0:00:14]} 63. Rd5 {[%clk 0:00:14]}  Nc4+ {[%clk 0:00:14]} 64. Kb3 {[%clk 0:00:14]}  Ne3 {[%clk 0:00:13]} 65. Re5 {[%clk 0:00:14]}  Ng4 {[%clk 0:00:13]} 66. Re6+ {[%clk 0:00:15]}  Ka7 {[%clk 0:00:12]} 67. a4 {[%clk 0:00:16]}  Nf2 {[%clk 0:00:12]} 68. Kc4 {[%clk 0:00:15]}  Nd1 {[%clk 0:00:12]} 69. Re2 {[%clk 0:00:15]}  Ka6 {[%clk 0:00:09]} 70. Kb3 {[%clk 0:00:12]}  b5 {[%clk 0:00:09]} 71. Kc2 {[%clk 0:00:12]} 1-0


[Site "https://www.chess.com"]

[Event "Titled Tuesday Blitz May 24 Early 2022"]
[White "Gatterer, Florian"]
[Black "Butti, Enrique"]
[WhiteFideId "811688"]
[BlackFideId "3700470"]
[WhiteElo "2218"]
[BlackElo "2080"]
[Result "1/2-1/2"]
[Round "04"]
[TimeControl "180+1"]
[Date "2022.05.25"]
[WhiteClock "0:00:04"]
[BlackClock "0:00:09"]

1. f4 {[%clk 0:03:00]}  d5 {[%clk 0:02:58]} 2. Nf3 {[%clk 0:02:57]}  g6 {[%clk 0:02:58]} 3. g3 {[%clk 0:02:57]}  Bg7 {[%clk 0:02:57]} 4. Bg2 {[%clk 0:02:58]}  c5 {[%clk 0:02:55]} 5. O-O {[%clk 0:02:57]}  Nc6 {[%clk 0:02:55]} 6. d3 {[%clk 0:02:57]}  d4 {[%clk 0:02:53]} 7. c3 {[%clk 0:02:54]}  Nh6 {[%clk 0:02:51]} 8. e4 {[%clk 0:02:54]}  dxe3 {[%clk 0:02:49]} 9. Bxe3 {[%clk 0:02:53]}  Qd6 {[%clk 0:02:40]} 10. Kh1 {[%clk 0:02:44]}  O-O {[%clk 0:02:39]} 11. Na3 {[%clk 0:02:44]}  Nf5 {[%clk 0:02:36]} 12. Bf2 {[%clk 0:02:35]}  b6 {[%clk 0:02:27]} 13. Nb5 {[%clk 0:02:32]}  Qb8 {[%clk 0:02:20]} 14. Qa4 {[%clk 0:02:02]}  Bb7 {[%clk 0:02:16]} 15. Na3 {[%clk 0:01:58]}  Rd8 {[%clk 0:02:10]} 16. Rad1 {[%clk 0:01:57]}  e5 {[%clk 0:01:58]} 17. fxe5 {[%clk 0:01:54]}  Nxe5 {[%clk 0:01:54]} 18. Nxe5 {[%clk 0:01:50]}  Bxg2+ {[%clk 0:01:49]} 19. Kxg2 {[%clk 0:01:51]}  Bxe5 {[%clk 0:01:48]} 20. Qe4 {[%clk 0:01:42]}  Bg7 {[%clk 0:01:41]} 21. g4 {[%clk 0:01:40]}  Nd6 {[%clk 0:01:38]} 22. Qf3 {[%clk 0:01:40]}  Qb7 {[%clk 0:01:37]} 23. d4 {[%clk 0:01:34]}  Qxf3+ {[%clk 0:01:33]} 24. Kxf3 {[%clk 0:01:35]}  cxd4 {[%clk 0:01:26]} 25. Bxd4 {[%clk 0:01:35]}  f5 {[%clk 0:01:25]} 26. Bxg7 {[%clk 0:01:27]}  Kxg7 {[%clk 0:01:23]} 27. Rd5 {[%clk 0:01:24]}  fxg4+ {[%clk 0:01:20]} 28. Kxg4 {[%clk 0:01:24]}  Nf5 {[%clk 0:01:20]} 29. Rxd8 {[%clk 0:01:09]}  Rxd8 {[%clk 0:01:17]} 30. Rf2 {[%clk 0:01:04]}  h5+ {[%clk 0:01:15]} 31. Kf3 {[%clk 0:00:44]}  Rd3+ {[%clk 0:01:11]} 32. Ke2 {[%clk 0:00:43]}  Rh3 {[%clk 0:01:09]} 33. Nb5 {[%clk 0:00:37]}  Kf6 {[%clk 0:01:08]} 34. Nd4 {[%clk 0:00:36]}  Ke5 {[%clk 0:01:04]} 35. Nf3+ {[%clk 0:00:29]}  Kd5 {[%clk 0:00:58]} 36. Nd2 {[%clk 0:00:26]}  Nd6 {[%clk 0:00:53]} 37. a4 {[%clk 0:00:18]}  g5 {[%clk 0:00:49]} 38. Kd1 {[%clk 0:00:17]}  g4 {[%clk 0:00:46]} 39. Kc2 {[%clk 0:00:15]}  h4 {[%clk 0:00:44]} 40. Kb3 {[%clk 0:00:15]}  g3 {[%clk 0:00:42]} 41. hxg3 {[%clk 0:00:15]}  hxg3 {[%clk 0:00:39]} 42. Rf6 {[%clk 0:00:15]}  Ne4 {[%clk 0:00:33]} 43. Nxe4 {[%clk 0:00:13]}  Kxe4 {[%clk 0:00:33]} 44. Rg6 {[%clk 0:00:13]}  Kf3 {[%clk 0:00:32]} 45. a5 {[%clk 0:00:07]}  g2 {[%clk 0:00:32]} 46. axb6 {[%clk 0:00:06]}  axb6 {[%clk 0:00:29]} 47. Rf6+ {[%clk 0:00:06]}  Ke2 {[%clk 0:00:27]} 48. Re6+ {[%clk 0:00:06]}  Kf2 {[%clk 0:00:27]} 49. Rf6+ {[%clk 0:00:05]}  Rf3 {[%clk 0:00:26]} 50. Rg6 {[%clk 0:00:05]}  g1=Q {[%clk 0:00:24]} 51. Rxg1 {[%clk 0:00:04]}  Kxg1 {[%clk 0:00:24]} 52. Ka4 {[%clk 0:00:03]}  Rf2 {[%clk 0:00:21]} 53. b4 {[%clk 0:00:03]}  Rb2 {[%clk 0:00:20]} 54. Kb5 {[%clk 0:00:02]}  Rc2 {[%clk 0:00:18]} 55. Kxb6 {[%clk 0:00:02]}  Kf2 {[%clk 0:00:17]} 56. b5 {[%clk 0:00:03]}  Rxc3 {[%clk 0:00:16]} 57. Ka7 {[%clk 0:00:03]}  Ra3+ {[%clk 0:00:14]} 58. Kb8 {[%clk 0:00:03]}  Ke3 {[%clk 0:00:13]} 59. b6 {[%clk 0:00:02]}  Kd4 {[%clk 0:00:13]} 60. b7 {[%clk 0:00:03]}  Rb3 {[%clk 0:00:11]} 61. Kc8 {[%clk 0:00:03]}  Rc3+ {[%clk 0:00:11]} 62. Kd8 {[%clk 0:00:04]}  Rb3 {[%clk 0:00:10]} 63. Kc8 {[%clk 0:00:04]}  Rc3+ {[%clk 0:00:10]} 64. Kd8 {[%clk 0:00:04]}  Rb3 {[%clk 0:00:09]} 65. Kc8 {[%clk 0:00:04]} 1/2-1/2


[Site "https://www.chess.com"]

[Event "Titled Tuesday Blitz May 24 Early 2022"]
[White "Grischuk, Alexander"]
[Black "Timofeev, Artyom"]
[WhiteFideId "4126025"]
[BlackFideId "4140419"]
[WhiteElo "2762"]
[BlackElo "2594"]
[Result "1-0"]
[Round "04"]
[TimeControl "180+1"]
[Date "2022.05.24"]
[WhiteClock "0:00:05"]
[BlackClock "0:00:03"]

1. e4 {[%clk 0:03:00]}  c5 {[%clk 0:02:58]} 2. Nc3 {[%clk 0:03:00]}  e6 {[%clk 0:02:56]} 3. Nf3 {[%clk 0:02:59]}  Nc6 {[%clk 0:02:53]} 4. Bb5 {[%clk 0:02:57]}  Nge7 {[%clk 0:02:50]} 5. O-O {[%clk 0:02:57]}  a6 {[%clk 0:02:49]} 6. Bxc6 {[%clk 0:02:57]}  Nxc6 {[%clk 0:02:49]} 7. d4 {[%clk 0:02:58]}  cxd4 {[%clk 0:02:49]} 8. Nxd4 {[%clk 0:02:59]}  Be7 {[%clk 0:02:47]} 9. Nxc6 {[%clk 0:02:57]}  dxc6 {[%clk 0:02:43]} 10. e5 {[%clk 0:02:57]}  Qxd1 {[%clk 0:02:35]} 11. Rxd1 {[%clk 0:02:57]}  c5 {[%clk 0:02:30]} 12. Ne4 {[%clk 0:02:40]}  Bd7 {[%clk 0:02:23]} 13. Be3 {[%clk 0:02:36]}  Rc8 {[%clk 0:02:23]} 14. Nd6+ {[%clk 0:02:33]}  Bxd6 {[%clk 0:02:22]} 15. Rxd6 {[%clk 0:02:34]}  Ke7 {[%clk 0:01:50]} 16. Rad1 {[%clk 0:02:30]}  Bb5 {[%clk 0:01:41]} 17. c4 {[%clk 0:01:59]}  Bxc4 {[%clk 0:01:32]} 18. Rd7+ {[%clk 0:01:59]}  Ke8 {[%clk 0:01:29]} 19. Bxc5 {[%clk 0:01:45]}  Bd5 {[%clk 0:01:29]} 20. Re7+ {[%clk 0:01:45]}  Kd8 {[%clk 0:01:28]} 21. Bd6 {[%clk 0:01:45]}  Rc2 {[%clk 0:01:20]} 22. b4 {[%clk 0:01:19]}  Rxa2 {[%clk 0:01:04]} 23. Rxf7 {[%clk 0:01:19]}  Rg8 {[%clk 0:01:04]} 24. h3 {[%clk 0:00:50]}  h5 {[%clk 0:01:00]} 25. Rd3 {[%clk 0:00:14]}  g5 {[%clk 0:00:55]} 26. Rg3 {[%clk 0:00:14]}  g4 {[%clk 0:00:51]} 27. h4 {[%clk 0:00:14]}  Ra1+ {[%clk 0:00:43]} 28. Kh2 {[%clk 0:00:14]}  Ra2 {[%clk 0:00:44]} 29. Rc3 {[%clk 0:00:13]}  Bc6 {[%clk 0:00:40]} 30. Kg3 {[%clk 0:00:13]}  Rh8 {[%clk 0:00:23]} 31. Rd3 {[%clk 0:00:08]}  Bd5 {[%clk 0:00:23]} 32. Rg7 {[%clk 0:00:06]}  Rc2 {[%clk 0:00:15]} 33. Rd4 {[%clk 0:00:06]}  Rc3+ {[%clk 0:00:07]} 34. Kh2 {[%clk 0:00:06]}  g3+ {[%clk 0:00:03]} 35. fxg3 {[%clk 0:00:04]}  Rc2 {[%clk 0:00:04]} 36. Rf4 {[%clk 0:00:02]}  Rxg2+ {[%clk 0:00:04]} 37. Kh3 {[%clk 0:00:03]}  Rc2 {[%clk 0:00:04]} 38. g4 {[%clk 0:00:03]}  hxg4+ {[%clk 0:00:03]} 39. Rfxg4 {[%clk 0:00:03]}  Rc3+ {[%clk 0:00:03]} 40. Kh2 {[%clk 0:00:03]}  Rc2+ {[%clk 0:00:03]} 41. Kg3 {[%clk 0:00:04]}  Rh2 {[%clk 0:00:03]} 42. Rg8+ {[%clk 0:00:02]}  Rxg8 {[%clk 0:00:02]} 43. Rxg8+ {[%clk 0:00:03]}  Kd7 {[%clk 0:00:03]} 44. Rg7+ {[%clk 0:00:04]}  Kc6 {[%clk 0:00:03]} 45. Kxh2 {[%clk 0:00:05]} 1-0


[Site "https://www.chess.com"]